Workbook

Sheet Budget
A1: Swami Vivekananda Youth Movement
A2: Vignyana Vahini
A3: Budget for 2011 - 2012 (all figures in rupees)
A4: S.No | B4: Sector | C4: Activity | D4: Amount | E4: No.of units | F4: Amount (activity wise) | G4: Amount (Sector wise) | H4: Remarks
A5: 1 | B5: Travel & Conveyance | C5: Mobile science lab | D5: 8000 | E5: 10 | F5: =D5*E5 -> 80000 | G5: =SUM(F5:F7) -> 87320 | H5: Rs 10 per km*800km per month
C6: Staff travel (2 wheeler) | D6: 410 | E6: 12 | F6: =D6*E6 -> 4920 | H6: Rs2.05 per km*200km per month
C7: Staff travel | D7: 200 | E7: 12 | F7: 2400 | H7: Other travel
A8: 2 | B8: Technical & resource support | C8: Chemicals, specimen & equipment | D8: 4000 | E8: 8 | F8: 32000 | G8: =SUM(F8:F11) -> 160250 | H8: Rs 4000 per month
C9: Library | D9: 5500 | E9: 5 | F9: 27500 | H9: 4 libraries for teachers + upgrading mobile science lab library
C10: Electronics Kit | D10: 3000 | E10: 1 | F10: 3000 | H10: Introduction to electronics
C11: Worksheets | D11: 97750 | E11: 1 | F11: 97750 | H11: Students' contribution of Rs 26250
A12: 3 | B12: Capacity Building | C12: Teacher training | D12: 5500 | E12: 3 | F12: 16500 | G12: =SUM(F12:F14) -> 45500
C13: Students' training | D13: 5550 | E13: 4 | F13: 22200
C14: Staff training & exposure visits | D14: 3400 | E14: 2 | F14: 6800
A15: 4 | B15: Events (science calendar not incuded) | C15: Awareness campaigns | D15: 1850 | E15: 4 | F15: 7400 | G15: =SUM(F15:F17) -> 40200
C16: Science & computer lab exposure visits | D16: 6020 | E16: 5 | F16: 30100
C17: Science club events | D17: 270 | E17: 10 | F17: 2700
A18: 5 | B18: Science Calendar | C18: World environment day | D18: 3600 | E18: 1 | F18: =D18*E18 -> 3600 | G18: =SUM(F18:F23) -> 88459.99
C19: Engineer's day | D19: 1170 | E19: 5 | F19: 5850 | H19: Participation fee of Rs 500
C20: Columbus day | D20: 703.33 | E20: 3 | F20: 2109.99 | H20: Participation fee of Rs 500
C21: World science day | D21: 3850 | E21: 1 | F21: 3850
C22: Young mathematician contest | D22: 1850 | E22: 1 | F22: 1850
C23: National science day (vignyana mela) | D23: 71200 | E23: 1 | F23: 71200 | H23: Community contribution of Rs 10000
A24: 6 | B24: Operational cost | C24: Office rent | D24: 1375 | E24: 12 | F24: 16500 | G24: =SUM(F24:F29) -> 49400
C25: Telephone | D25: 200 | E25: 12 | F25: 2400
C26: Teachers meeting | D26: 750 | E26: 6 | F26: 4500
C27: Stationery & other expenses | D27: 500 | E27: 12 | F27: 6000
C28: Annual report | D28: 2000 | E28: 1 | F28: 2000
C29: Prayoga | D29: 3000 | E29: 6 | F29: 18000 | H29: Community contribution of Rs 7200
A30: 7 | B30: Personnel cost | C30: Program manager | D30: 6413.2 | E30: 12 | F30: 76958.4 | G30: =F30+F31 -> 175944.84
C31: Program coordinator | D31: 8248.87 | E31: 12 | F31: 98986.44
A32: Budget for 2011 - 2012 | G32: =SUM(G5:G30) -> 647074.83
A33: Budget for 2010 - 2011 | G33: 550000
A34: Opening balance in 2010 - 2011 | G34: 255726
A35: Fund Transferred on 14th April 2011 | G35: 297245.7
A36: Total fund received | G36: =G34+G35 -> 552971.7
A37: Expenses 2010 - 2011 | G37: 535337
A38: Unspent fund | G38: =G36-G37 -> 17634.7 | H38: Requested to be carried forward for the next year
A39: Amount requested for the year 2011 - 2012 | G39: =G32-G38 -> 629440.13

Sheet Break-up
A2: SNo | B2: Activities | C2: Unit cost | D2: No | E2: unit Amount | F2: T U | G2: Total Amount | H2: Remarks
A3: 1 | B3: Travel & Conveyance
B4: Vehicle Travel - Tata ACE | C4: =800*10 -> 8000 | D4: 1 | E4: =+C4*D4 -> 8000 | F4: 10 | G4: =F4*E4 -> 80000 | H4: Rs10 per km*800km per month
B5: Staff Travel (2 wheeler) | C5: =2.05*200 -> 410 | D5: 1 | E5: =+C5*D5 -> 410 | F5: 12 | G5: =F5*E5 -> 4920 | H5: Rs2.05 per km*200km per month
B6: Staff Travel | C6: 200 | D6: 1 | E6: =+C6*D6 -> 200 | F6: 12 | G6: =F6*E6 -> 2400 | H6: Travel to Mysore, Bangalore, local
B7: Total | G7: =SUM(G4:G6) -> 87320
A8: 2 | B8: Capacity Building
B9: Teacher Training | C9: =SUM(C10:C15) -> 6000 | D9: 1 | E9: =D9*C9 -> 6000 | F9: 3 | G9: =SUM(G10:G15) -> 18000
B10: Food | C10: =50*50 -> 2500 | D10: 1 | E10: 2500 | F10: 3 | G10: =F10*E10 -> 7500 | H10: Rs.50 per head*50 teachers Tea and Snacks Rs.20 food 30
B11: Resource person fee | C11: 1500 | D11: 1 | E11: 1500 | F11: 3 | G11: 4500 | H11: Out Side
B12: Resource person travel | C12: 1000 | D12: 1 | E12: 1000 | F12: 3 | G12: 3000 | H12: Average
B13: Coordination expenses | C13: 100 | D13: 1 | E13: 100 | F13: 3 | G13: 300 | H13: Phone calls + Letters
B14: Workshop Materials | C14: 400 | D14: 1 | E14: 400 | F14: 3 | G14: 1200 | H14: Hand outs for teachers (xerox)
B15: Stationery | C15: =10*50 -> 500 | D15: 1 | E15: 500 | F15: 3 | G15: 1500 | H15: Rs10 per teacher for pad & pen
B16: Students' Training | C16: =SUM(C17:C21) -> 5550 | D16: 1 | E16: 5550 | F16: 4 | G16: =SUM(G17:G21) -> 22200
B17: Food | C17: =40*50 -> 2000 | D17: 1 | E17: 2000 | F17: 4 | G17: 8000 | H17: Rs.30 Meals and Snacks 10 per head*50 students
B18: Resource person fee | C18: 1500 | D18: 1 | E18: 1500 | F18: 4 | G18: 6000 | H18: Out Side
B19: Resource person travel | C19: 1000 | D19: 1 | E19: 1000 | F19: 4 | G19: 4000 | H19: Average
B20: Raw materials | C20: 1000 | D20: 1 | E20: 1000 | F20: 4 | G20: 4000 | H20: Necessary materials for workshop
B21: Coordination expenses | C21: 50 | D21: 1 | E21: 50 | F21: 4 | G21: 200 | H21: Phone calls + Letters
B22: Staff Training & Exposure visits | C22: =SUM(C23:C26) -> 3400 | D22: 1 | E22: 3400 | F22: 2 | G22: =SUM(G23:G26) -> 6800
B23: Food | C23: =75*2*2 -> 300 | D23: 1 | E23: 300 | F23: 2 | G23: 600 | H23: Rs.75*2 days*2 persons
B24: Travel | C24: =1000*2 -> 2000 | D24: 1 | E24: 2000 | F24: 2 | G24: 4000 | H24: Out Side area
B25: Accomodation | C25: 700 | D25: 1 | E25: 700 | F25: 2 | G25: 1400 | H25: Average
B26: Registration fee | C26: 400 | D26: 1 | E26: 400 | F26: 2 | G26: 800 | H26: Average
B27: Total | G27: =G9+G16+G22 -> 47000
A28: 3 | B28: Technical & Resource Support
B29: Chemicals, specimens & equipment | C29: =SUM(C30:C32) -> 4000 | D29: 1 | E29: =+C29*D29 -> 4000 | F29: 8 | G29: =G30+G31+G32 -> 32000 | H29: Rs.4000 expenses per month
B30: Chemicals | C30: 1500 | D30: 1 | E30: 1500 | F30: 8 | G30: =F30*E30 -> 12000 | H30: Average
B31: Specimens & Slides | C31: 500 | D31: 1 | E31: 500 | F31: 8 | G31: 4000 | H31: Average
B32: Equipment - Maintenance & addition | C32: 2000 | D32: 1 | E32: 2000 | F32: 8 | G32: 16000 | H32: Average
B33: Libraries | C33: =SUM(C34:C35) -> 5500 | D33: 1 | E33: 5500 | F33: 5 | G33: =G34+G35 -> 27500
B34: Books & CDs | C34: 5000 | D34: 1 | E34: 5000 | F34: 5 | G34: 25000 | H34: 4 libraries for teachers + Mobile lab as per teachers request
B35: Library set up & stationery | C35: 500 | D35: 1 | E35: 500 | F35: 5 | G35: 2500 | H35: Average
B36: Electronics kit | C36: 3000 | D36: 1 | E36: 3000 | F36: 1 | G36: 3000 | H36: Average
B37: Worksheets | C37: =C38+C39+C40 -> 30500 | D37: 1 | E37: 30500 | G37: =G38+G39+G40 -> 124000
B38: 10th standard | C38: =2000*3*1.25 -> 7500 | D38: 1 | E38: =C38*D38 -> 7500 | F38: 8 | G38: =E38*F38 -> 60000 | H38: Rs.1.25 per worksheet per student 2000 Students monthly 3 worksheet
B39: 8th & 9th standard | C39: =1500*2*1 -> 3000 | D39: 1 | E39: =C39*D39 -> 3000 | F39: 8 | G39: =E39*F39 -> 24000 | H39: Rs.1 per worksheet per student 1500 students Monthly 2 worksheet
B40: SSLC preparatory exams | C40: 20000 | D40: 1 | E40: =C40*D40 -> 20000 | F40: 2 | G40: =E40*F40 -> 40000 | H40: Based on last year
B41: Total | E41: =SUM(E29:E37) -> 52500 | G41: =G29+G33+G36+G37 -> 186500
A42: 4 | B42: Science Calendar
B43: World Environment Day | C43: =SUM(C44:C48) -> 3600 | D43: 1 | E43: =+C43*D43 -> 3600 | F43: 1 | G43: =SUM(G44:G48) -> 3600
B44: Coordination expenses | C44: 400 | D44: 1 | E44: 400 | F44: 1 | G44: =F44*E44 -> 400 | H44: Posters+letters+phone calls
B45: Prizes | C45: 750 | D45: 1 | E45: 750 | F45: 1 | G45: =F45*E45 -> 750 | H45: Based on last year
B46: Resource person fee | C46: 750 | D46: 1 | E46: 750 | F46: 1 | G46: =F46*E46 -> 750 | H46: Outside
B47: Resource person food & travel | C47: 500 | D47: 1 | E47: 500 | F47: 1 | G47: =F47*E47 -> 500 | H47: Average
B48: Participation certificates | C48: =3*400 -> 1200 | D48: 1 | E48: 1200 | F48: 1 | G48: =F48*E48 -> 1200 | H48: Rs.3 per certificate * 400 students
B49: Engineer's Day | C49: =SUM(C50:C53) -> 1270 | D49: 1 | E49: 1270 | F49: 5 | G49: =SUM(G50:G53) -> 6350
B50: Coordination expenses | C50: 20 | D50: 1 | E50: 20 | F50: 5 | G50: =F50*E50 -> 100 | H50: Posters+letters+phone calls
B51: Prizes | C51: 400 | D51: 1 | E51: 400 | F51: 5 | G51: 2000 | H51: Based on last year
B52: Participation certificates | C52: =3*200 -> 600 | D52: 1 | E52: 600 | F52: 5 | G52: 3000 | H52: Rs.3 per certificate * 200 students
B53: Raw materials | C53: 250 | D53: 1 | E53: 250 | F53: 5 | G53: 1250 | H53: Charts+papers+other materials
B54: Columbus Day | C54: =SUM(C55:C58) -> 870 | D54: 1 | E54: 870 | F54: 3 | G54: =SUM(G55:G58) -> 2610
B55: Coordination expenses | C55: 20 | D55: 1 | E55: 20 | F55: 3 | G55: 60 | H55: Posters+letters+phone calls
B56: Prizes | C56: 400 | D56: 1 | E56: 400 | F56: 3 | G56: 1200 | H56: Based on last year
B57: Participation certificates | C57: =3*100 -> 300 | D57: 1 | E57: 300 | F57: 3 | G57: 900 | H57: Rs.3 * 100 students * 3 centres
B58: Raw materials | C58: 150 | D58: 1 | E58: 150 | F58: 3 | G58: 450 | H58: Question papers+Markers
B59: World Science Day | C59: =SUM(C60:C65) -> 3850 | D59: 1 | E59: 3850 | F59: 1 | G59: =SUM(G60:G65) -> 3850
B60: Coordination expenses | C60: 100 | D60: 1 | E60: 100 | F60: 1 | G60: 100 | H60: Posters+letters+phone calls
B61: Prizes | C61: 750 | D61: 1 | E61: 750 | F61: 1 | G61: 750 | H61: Based on last year
B62: Resource person fee | C62: 1500 | D62: 1 | E62: 1500 | F62: 1 | G62: 1500 | H62: Outside
B63: Resource person food & travel | C63: 500 | D63: 1 | E63: 500 | F63: 1 | G63: 500 | H63: Average
B64: Participation certificates | C64: =200*3 -> 600 | D64: 1 | E64: 600 | F64: 1 | G64: 600 | H64: Rs.3 per certificate * 200 students
B65: Raw materials | C65: 400 | D65: 1 | E65: 400 | F65: 1 | G65: 400 | H65: Question papers+Sheets
B66: Young Mathematician Contest | C66: =SUM(C67:C70) -> 1850 | D66: 1 | E66: 1850 | F66: 1 | G66: =SUM(G67:G70) -> 1850 | H66: Taluk level event
B67: Coordination expenses | C67: 100 | D67: 1 | E67: 100 | F67: 1 | G67: 100 | H67: Posters+letters+phone calls
B68: Prizes | C68: 750 | D68: 1 | E68: 750 | F68: 1 | G68: 750 | H68: Based on last year
B69: Participation certificates | C69: =200*3 -> 600 | D69: 1 | E69: 600 | F69: 1 | G69: 600 | H69: Rs.3 per certificate * 200 students
B70: Raw materials | C70: =200*2 -> 400 | D70: 1 | E70: 400 | F70: 1 | G70: 400 | H70: Question papers+Sheets
B71: National Science Day (Vignyana mela) | C71: =SUM(C72+C73+C78+C79+C80+C81+C82+C83+C84+C85+C86) -> 72250 | D71: 1 | E71: 72250 | F71: 1 | G71: =G72+G73+G78+G79+G80+G81+G82+G83+G84+G85+G86 -> 81200
B72: Coordination expenses | C72: 400 | D72: 1 | E72: 400 | F72: 1 | G72: =F72*E72 -> 400 | H72: Posters+letters+phone calls
B73: Prizes | C73: =SUM(C74:C77) -> 5150 | E73: 0 | G73: =SUM(G74:G77) -> 14100
B74: Best perfoming schools | C74: 1000 | D74: 1 | E74: 1000 | F74: 5 | G74: 5000 | H74: Rs.1000 per school * 5 schools
B75: Best teachers | C75: 400 | D75: 1 | E75: 400 | F75: 4 | G75: 1600 | H75: Based on last year
B76: Science Exhibition | C76: 2250 | D76: 1 | E76: 2250 | F76: 2 | G76: 4500 | H76: Based on last year
B77: Science Quiz | C77: 1500 | D77: 1 | E77: 1500 | F77: 2 | G77: 3000 | H77: Based on last year
B78: Participation certificates | C78: =3*900 -> 2700 | D78: 1 | E78: 2700 | F78: 1 | G78: 2700 | H78: Rs.3 per certificate * 300 students
B79: Raw materials | C79: 2000 | D79: 1 | E79: 2000 | F79: 1 | G79: 2000 | H79: Average
B80: Banners | C80: 1000 | D80: 1 | E80: 1000 | F80: 1 | G80: 1000 | H80: Average
B81: Food | C81: =1500*15 -> 22500 | D81: 1 | E81: 22500 | F81: 1 | G81: 22500 | H81: Rs.15 per head * 1500
B82: Tent / Hall | C82: 25000 | D82: 1 | E82: 25000 | F82: 1 | G82: 25000 | H82: Average
B83: Sound system | C83: 6000 | D83: 1 | E83: 6000 | F83: 1 | G83: 6000 | H83: Based on last year
B84: Resource person fee | C84: 1500 | D84: 1 | E84: 1500 | F84: 1 | G84: 1500 | H84: Outside
B85: Resource person travel | C85: 1000 | D85: 1 | E85: 1000 | F85: 1 | G85: 1000 | H85: Average
B86: Miscellaneous expenses | C86: 5000 | D86: 1 | E86: 5000 | F86: 1 | G86: 5000 | H86: tag,registration sheet, Rope ec.,
B87: Total | G87: =G43+G49+G54+G59+G66+G71 -> 99460
A88: 5 | B88: Events | C88: Unit cost | D88: No | E88: unit Amount | F88: T U | G88: Total Amount
B89: Awareness campaigns | C89: =SUM(C90:C93) -> 1850 | D89: 1 | E89: 1850 | F89: 4 | G89: =SUM(G90:G93) -> 7400
B90: Resource person fee | C90: 1000 | D90: 1 | E90: 1000 | F90: 4 | G90: 4000 | H90: Outside
B91: Resource person food & travel | C91: 500 | D91: 1 | E91: 500 | F91: 4 | G91: 2000 | H91: Average
B92: Coordination expenses | C92: 100 | D92: 1 | E92: 100 | F92: 4 | G92: 400 | H92: Posters+letters+phone calls
B93: Raw materials | C93: 250 | D93: 1 | E93: 250 | F93: 4 | G93: 1000 | H93: Miscellaneous
B94: Science & computer lab exposure visits | C94: =SUM(C95:C98) -> 6020 | D94: 1 | E94: 6020 | F94: 5 | G94: =SUM(G95:G98) -> 30100
B95: Coordination expenses | C95: 20 | D95: 1 | E95: 20 | F95: 5 | G95: 100 | H95: Posters+letters+phone calls
B96: Vehicle Travel - School bus | C96: =150*20 -> 3000 | D96: 1 | E96: 3000 | F96: 5 | G96: 15000 | H96: Rs20 per km*150km per month
B97: Food | C97: =15*100 -> 1500 | D97: 1 | E97: 1500 | F97: 5 | G97: 7500 | H97: Rs15 per head
B98: Lab Usage fee | C98: 1500 | D98: 1 | E98: 1500 | F98: 5 | G98: 7500 | H98: Lab fee
B99: Science Club events | C99: =C100+C101 -> 270 | D99: 1 | E99: 270 | F99: 10 | G99: =SUM(G100:G101) -> 2700
B100: Coordination expenses | C100: 20 | D100: 1 | E100: 20 | F100: 10 | G100: 200 | H100: Posters+letters+phone calls
B101: Raw materials | C101: 250 | D101: 1 | E101: 250 | F101: 10 | G101: 2500 | H101: Chemicals+Stationery+Others
B102: Total | G102: =G89+G94+G99 -> 40200
A103: 6 | B103: Operational Costs | C103: Unit cost | D103: No | E103: unit Amount | F103: T U | G103: Total Amount
B104: Office rent | C104: 1375 | D104: 1 | E104: =+C104*D104 -> 1375 | F104: 12 | G104: =F104*E104 -> 16500 | H104: Based on last year
B105: Phone calls | C105: 200 | D105: 1 | E105: 200 | F105: 12 | G105: 2400 | H105: Based on last year
B106: Teachers' meetings | C106: =SUM(C107:C107) -> 750 | D106: 1 | E106: 750 | F106: 6 | G106: 4500 | H106: Rs.30 per head*25 teachers
B107: Food | C107: =30*25 -> 750 | D107: 1 | E107: 750 | F107: 6 | G107: 4500 | H107: Average
B108: Documentation, Stationery & others | C108: 500 | D108: 1 | E108: 500 | F108: 12 | G108: 6000 | H108: Average
B109: Annual Report | C109: 2000 | D109: 1 | E109: 2000 | F109: 1 | G109: 2000
B110: Prayoga | C110: =SUM(C111:C112) -> 4200 | D110: 1 | E110: 4200 | F110: 6 | G110: 25200
B111: Newsletter | C111: =2*2000 -> 4000 | D111: 1 | E111: 4000 | F111: 6 | G111: 24000 | H111: 2 monthly 2000 Students
B112: Prizes & participation | C112: 200 | D112: 1 | E112: 200 | F112: 6 | G112: 1200 | H112: Rs.200 per issue
B113: Total | E113: =SUM(E104:E110) -> 9775 | G113: =G104+G105+G106+G108+G109+G110 -> 56600

Sheet Sheet3
